fUSD/lending_fUSD_20250814
["ID","MTS","AMOUNT","RATE_DAILY","PERIOD"]
[379106640,1755143444277,-150.0,0.00040453,2]
[379106642,1755143444291,-505.0,0.00040455,20]
[379106645,1755143444307,-150.0,0.00040463,2]
[379106648,1755143444322,-150.0,0.0004047,2]
[379106650,1755143444336,-150.0,0.0004047,7]
[379106653,1755143444350,-850.44394661,0.0004047,2]
[379106655,1755143444366,-150.0,0.00040473,2]
[379106658,1755143444381,-150.0,0.00040474,2]
[379106660,1755143444397,-150.0,0.00040483,2]
[379106663,1755143444413,-1556.0,0.00040493,120]
[379106666,1755143444427,-150.0,0.00040494,2]
[379106668,1755143444442,-150.0,0.00040495,2]
[379106671,1755143444458,-6213.78882576,0.00040496,4]
[379106673,1755143444473,-150.0,0.00040501,2]
[379106676,1755143444487,-151.97041497,0.00040502,2]
[379106678,1755143444501,-150.0,0.00040503,2]
[379106681,1755143444517,-8251.68945511,0.00040503,4]
[379106684,1755143444533,-9274.45227234,0.00040503,4]
[379106853,1755143446165,-332.43172732,0.00040503,4]
[379106962,1755143447213,-4393.2093805,0.00030326,2]
[379106964,1755143447223,-150.0,0.00040331,2]
[379106966,1755143447232,-3221.85875296,0.00040503,4]
[379106982,1755143447384,-150.0,0.00031061,2]
[379106984,1755143447394,-1121.00947883,0.00040503,4]
[379106986,1755143447405,-1537.27475,0.00040503,4]
[379107142,1755143449066,-150.0,0.00040069,2]
[379107144,1755143449076,-150.0,0.00040157,2]
[379107146,1755143449086,-150.0,0.00040161,2]
[379107149,1755143449095,-150.0,0.00040284,2]
[379107151,1755143449105,-150.0,0.00040351,2]
[379107153,1755143449115,-150.0,0.00040392,2]
[379107155,1755143449127,-110.94572,0.00040402,2]
[379107163,1755143449219,-1066.08,0.00031,30]
[379107165,1755143449230,-39.05428,0.00040402,2]
[379107167,1755143449242,-150.0,0.00040417,2]
[379107169,1755143449262,-150.0,0.00040417,2]
[379107171,1755143449276,-150.0,0.00040417,2]
[379107173,1755143449286,-150.0,0.00040429,2]
[379107175,1755143449295,-150.0,0.00040434,2]
[379107177,1755143449304,-150.0,0.0004045,2]
[379107179,1755143449314,-150.0,0.0004046,2]
[379107180,1755143449323,-150.0,0.00040466,2]
[379107182,1755143449333,-150.0,0.00040467,2]
[379107184,1755143449343,-150.0,0.0004047,2]
[379107187,1755143449353,-150.0,0.00040472,2]
[379107189,1755143449362,-150.0,0.0004048,2]
[379107191,1755143449371,-150.0,0.0004049,2]
[379107193,1755143449381,-150.0,0.00040496,2]
[379107195,1755143449390,-732.14177239,0.00040503,4]
[379107447,1755144007285,434.53,0.0002,7]
[379107451,1755144286483,150.04,0.00013699,2]
[379107459,1755144439191,-404.3723,0.00020073,2]
[379107460,1755144439213,-162.01,0.00020073,2]
[379107461,1755144439235,-151.0,0.00021467,2]
[379107462,1755144439257,-151.0,0.00021546,2]
[379107463,1755144439277,-151.0,0.00021657,2]
[379107464,1755144439298,-151.0,0.00021751,2]
[379107465,1755144439320,-250.0,0.00021765,2]
[379107466,1755144439341,-156.74688272,0.00021845,2]
[379107467,1755144439365,-179.19280337,0.00022,2]
[379107484,1755144462835,1076.0,0.00025,30]
[379107485,1755144532693,1567.0,0.00025,30]
[379107488,1755144556100,-269.5816,0.00021471,2]
[379107489,1755144556124,-151.0,0.00021555,2]
[379107490,1755144556146,-151.0,0.0002158,2]
[379107491,1755144556168,-151.0,0.00021612,2]
[379107492,1755144556191,-151.0,0.00021618,2]
[379107493,1755144556212,-333.80719663,0.00022,2]
[379107494,1755144556235,-347.65292,0.00022,2]
[379107495,1755144556256,-3294.38162192,0.00022065,2]
[379107498,1755144583770,393.82553072,0.00025,30]
[379107516,1755144632303,-269.5816,0.00021529,2]
[379107518,1755144632313,-151.0,0.00021606,2]
[379107520,1755144632322,-513.0,0.00022,2]
[379107522,1755144632331,-269.5816,0.00022065,2]
[379107524,1755144632341,-7335.85216798,0.00022065,2]
[379107526,1755144632351,-300.0,0.0002208,2]
[379107527,1755144632360,-250.0,0.0002208,2]
[379107528,1755144632370,-764.0,0.00022383,2]
[379107529,1755144632379,-648.53,0.00022384,2]
[379107530,1755144632388,-937.09,0.00022384,2]
[379107531,1755144632398,-9999.99,0.00022384,2]
[379107532,1755144632407,-150.99,0.00022384,2]
[379107533,1755144632417,-8449.54,0.00022384,2]
[379107534,1755144632426,-1506.87,0.00022384,2]
[379107535,1755144632436,-150.04,0.00022505,2]
[379107536,1755144632446,-150.99,0.00022505,2]
[379107537,1755144632455,-3446.45,0.00022767,2]
[379107538,1755144632465,-8269.11,0.00022894,2]
[379107539,1755144632475,-1067.18498611,0.00022975,2]
[379107540,1755144632484,-150.0,0.00023,2]
[379107541,1755144632494,-2781.45,0.00023025,2]
[379107542,1755144632504,-15162.31,0.00023048,2]
[379107543,1755144632514,-150.0,0.00023075,2]
[379107544,1755144632523,-368.98319395,0.00023105,2]
[379107545,1755144632532,-432.75806698,0.00023209,2]
[379107546,1755144632542,-496.53294001,0.00023314,2]
[379107547,1755144632551,-100.09453948,0.00023419,2]
[379107548,1755144632582,-460.21327356,0.00023419,2]
[379107549,1755144632592,-624.08268607,0.00023524,2]
[379107550,1755144632601,-11250.02604037,0.00023562,7]
[379107556,1755144638848,-237.6297259,0.00022383,2]
[379107557,1755144638858,-358.44321143,0.00022383,2]
[379107558,1755144638868,-198.96710618,0.00022383,2]
[379107559,1755144638877,-194.13975472,0.00023562,7]
[379107560,1755144638888,-1993.89599999,0.00023562,7]
[379107577,1755144640094,-11632.44820492,0.00023562,7]
[379107578,1755144640104,-666.0,0.00023586,3]
[379107579,1755144640113,-300.0,0.00023618,2]
[379107580,1755144640123,-1000.0,0.00023618,3]
[379107581,1755144640133,-250.0,0.00023618,2]
[379107582,1755144640144,-300.0,0.00023618,2]
[379107583,1755144640153,-687.8575591,0.00023628,2]
[379107584,1755144640163,-300.0,0.00023682,2]
[379107585,1755144640173,-1000.0,0.00023682,3]
[379107586,1755144640182,-751.63243213,0.00023733,2]
[379107587,1755144640192,-513.0,0.00023758,3]
[379107589,1755144640201,-815.40730515,0.00023838,2]
[379107591,1755144640211,-879.18217818,0.00023943,2]
[379107593,1755144640220,-159.0,0.00024,7]
[379107595,1755144640229,-942.95705121,0.00024047,2]
[379107597,1755144640239,-1006.73192424,0.00024152,2]
[379107599,1755144640249,-1070.50679727,0.00024257,2]
[379107601,1755144640258,-1134.2816703,0.00024362,2]
[379107603,1755144640267,-1198.05654333,0.00024466,2]
[379107605,1755144640276,-1261.83141636,0.00024571,2]
[379107607,1755144640288,-150.0,0.00024581,2]
[379107609,1755144640297,-1325.60628939,0.00024676,2]
[379107612,1755144640306,-1389.38116241,0.00024781,2]
[379107613,1755144640316,-1453.15603544,0.00024885,2]
[379107615,1755144640326,-2635.9256283,0.000249,2]
[379107617,1755144640336,-210.01003707,0.000249,2]
[379107619,1755144640345,-157.76025977,0.000249,2]
[379107621,1755144640356,-34517.2901,0.000249,2]
[379107623,1755144640366,-411.9,0.00024913,2]
[379107626,1755144640375,-500.0,0.00024973,2]
[379107627,1755144640385,-500.0,0.00024973,2]
[379107629,1755144640394,-500.0,0.00024973,2]
[379107632,1755144640404,-502.24778154,0.00024973,2]
[379107634,1755144640414,-503.74552117,0.00024973,2]
[379107636,1755144640424,-500.0,0.00024973,2]
[379107638,1755144640434,-500.0,0.00024973,2]
[379107639,1755144640443,-500.0,0.00024973,2]
[379107641,1755144640452,-500.0,0.00024973,2]
[379107643,1755144640461,-500.0,0.00024973,2]
[379107645,1755144640470,-503.54113439,0.00024973,2]
[379107647,1755144640480,-303.19140602,0.00024989,2]
[379107649,1755144640489,-267.93040721,0.00024989,2]
[379107651,1755144640498,-500.0,0.00024989,2]
[379107653,1755144640507,-543.83967462,0.00024989,2]
[379107656,1755144640517,-199.06017813,0.00024989,2]
[379107657,1755144640526,-1516.93090847,0.0002499,2]
[379107659,1755144640536,-103909.657534,0.0002499,3]
[379107662,1755144640548,-458.13769775,0.0002499,3]
[379107664,1755144640557,-1681.88073681,0.00024992,2]
[379107666,1755144640567,-837.97642435,0.00024992,6]
[379107668,1755144640576,-1000.0,0.00024999,2]
[379107670,1755144640585,-316183.47190694,0.00025,10]
[379107674,1755144640612,-270.14775018,0.00025,10]
[379107964,1755144643546,-7600.26533855,0.00025,10]
[379107965,1755144643576,-4766.03358598,0.00025,10]
[379108033,1755144646872,-616.135648,0.00021421,2]
[379108034,1755144646882,-47847.27987708,0.00025,10]
[379108035,1755144646894,-40874.1297285,0.00025,10]
[379108036,1755144646905,-35227.68138277,0.00025,10]
[379108037,1755144646915,-211.86673127,0.00025,10]
[379108038,1755144646927,-159.14,0.00025,7]
[379108039,1755144646937,-458.13769775,0.00025488,2]
[379108040,1755144646946,-160.0,0.00025488,2]
[379108041,1755144646955,-211.86673127,0.00025488,2]
[379108042,1755144646966,-513.0,0.00025515,5]
[379108043,1755144646975,-492.02366065,0.00025521,2]
[379108044,1755144646985,-504.07549134,0.00025521,2]
[379108045,1755144646994,-1143.70847725,0.00025521,2]
[379108046,1755144647005,-500.0,0.00025521,2]
[379108047,1755144647014,-510.83497052,0.00025521,2]
[379108048,1755144647023,-1000.0,0.00025521,2]
[379108049,1755144647033,-500.0,0.00025521,2]
[379108050,1755144647042,-2635.9256283,0.00026625,2]
[379108051,1755144647051,-7422.11839528,0.00026697,3]
[379108052,1755144647060,-1681.88073677,0.00026707,2]
[379108053,1755144647070,-7422.11839528,0.00026941,3]
[379108054,1755144647079,-210.01003706,0.00027119,2]
[379108055,1755144647088,-157.76025976,0.00027119,2]
[379108056,1755144647097,-457.85140473,0.00027273,7]
[379108057,1755144729256,7943.56950624,0.0001869,2]
[379108063,1755144919824,317.0,0.00025,30]
[379108066,1755145277573,150.9,0.00013699,2]
[379108067,1755145552135,-1597.04701343,0.00019,2]
[379108068,1755145555358,2990.31,0.00015,10]
[379108080,1755145589118,1014.32,0.000241,30]
[379108081,1755145604868,1065.51330852,0.00024,30]
[379108082,1755145613622,425.0,0.000241,30]
[379108083,1755145626095,-300.0,0.00018998,2]
[379108084,1755145626117,-670.0,0.00018999,2]
[379108085,1755145626138,-258.59281189,0.00018999,2]
[379108086,1755145626158,-500.0,0.00018999,2]
[379108087,1755145626180,-186.76058541,0.00018999,2]
[379108088,1755145641103,-183.69708714,0.00018999,2]
[379108089,1755145641125,-165.65109482,0.00018999,2]
[379108090,1755145641157,-213.09627095,0.00018999,2]
[379108091,1755145641778,10800.0,0.00024,30]
[379108113,1755145765142,-164.87978952,0.00018899,2]
[379108114,1755145765667,-1068.981974,0.000189,2]
[379108115,1755145765688,-205.20720015,0.000189,2]
[379108116,1755145765710,-503.74552117,0.00018973,2]
[379108117,1755145765732,-4.45708258,0.00018999,2]
[379108118,1755145765753,-500.0,0.00018999,2]
[379108119,1755145765774,-192.47479523,0.00018999,2]
[379108120,1755145765794,-22.73346814,0.00018999,2]
[379108121,1755145786027,2025.87277948,0.000187,2]
[379108122,1755145787625,-181.59751361,0.000187,2]
[379108123,1755145790100,-182.88268255,0.000187,2]
[379108124,1755145792157,-453.88272206,0.000187,2]
[379108125,1755145796776,-176.37903128,0.000187,2]
[379108126,1755145799291,-221.81412718,0.000187,2]
[379108127,1755145802741,3300.33731328,0.0002,4]
[379108128,1755145802768,699.66268672,0.0002,4]
[379108129,1755145804601,-438.71041377,0.00018699,2]
[379108130,1755145807098,-61.28958623,0.00018699,2]
[379108131,1755145807123,-113.71832501,0.00018699,2]
[379108132,1755145810297,-186.28167499,0.00018699,2]
[379108133,1755145810319,-89.71834813,0.00018699,2]
[379108134,1755145812364,-175.80861874,0.00018699,2]
[379108135,1755145814925,-152.0,0.00018699,2]
[379108136,1755145816234,-184.66247813,0.00018699,2]
[379108137,1755145821075,-210.15317198,0.00018699,2]
[379108138,1755145823366,-191.82973148,0.00018699,2]
[379108139,1755145824793,-195.82765154,0.00018699,2]
[379108140,1755145824815,-138.13425793,0.000187,2]
[379108141,1755145828512,-218.57890675,0.000187,2]
[379108152,1755145832063,-1046.10500325,0.000187,2]
[379108153,1755145832075,-54892.16090855,0.000187,2]
[379108154,1755145832086,-335.68013862,0.000189,2]
[379108155,1755145832097,-890.81831165,0.000189,2]
[379108156,1755145832106,-1075.47581838,0.000189,2]
[379108157,1755145832115,-503.60571395,0.00018973,2]
[379108158,1755145832125,-500.0,0.00018973,2]
[379108159,1755145832135,-500.0,0.00018973,2]
[379108160,1755145832145,-500.0,0.00018973,2]
[379108161,1755145832154,-500.0,0.00018973,2]
[379108162,1755145832164,-502.24778154,0.00018973,2]
[379108163,1755145832174,-500.0,0.00018973,2]
[379108164,1755145832183,-503.54113439,0.00018973,2]
[379108165,1755145832192,-477.26653186,0.00018999,2]
[379108166,1755145832201,-250.0,0.00018999,2]
[379108167,1755145832211,-300.0,0.00018999,2]
[379108168,1755145832221,-300.0,0.00018999,2]
[379108169,1755145832231,-300.0,0.00018999,2]
[379108170,1755145832240,-87038.61306574,0.00019,2]
[379108171,1755145832252,-941.85870651,0.00019,2]
[379108172,1755145832313,-163888.44902825,0.00019,2]
[379108173,1755145832414,-333733.57884117,0.00019,2]
[379108216,1755145832916,-109204.02376135,0.00019,2]
[379108243,1755145838043,-168.57119495,0.00018699,2]
[379108244,1755145838059,-128.00095986,0.0001899,2]
[379108245,1755145838078,-270.98618341,0.0001899,2]
[379108246,1755145838095,-398.98714327,0.0001899,2]
[379108247,1755145838110,-24.49020456,0.0001899,2]
[379108248,1755145838167,-374.49693871,0.0001899,2]
[379108249,1755145838183,-1089.93928152,0.00019,2]
[379108250,1755145838207,-3773.51675866,0.00019,2]
[379108251,1755145838226,-1047.60955882,0.00019,2]
[379108252,1755145838291,-3235582.63804782,0.00019,2]
[379108257,1755145838420,-20989.41931868,0.00019,2]
[379108273,1755145839996,-1558061.40028539,0.00019,2]
[379108274,1755145840011,-4002095.61508154,0.00019,2]
[379108275,1755145840027,-250.0,0.00019033,2]
[379108276,1755145840043,-300.0,0.00019033,2]
[379108277,1755145840058,-151.9227341,0.0001917,2]
[379108278,1755145840073,-1015.68889516,0.000194,2]
[379108279,1755145840089,-510.56550942,0.00019521,2]
[379108280,1755145840105,-505.88320916,0.00019521,2]
[379108281,1755145840121,-205.2072001,0.00019743,2]
[379108282,1755145840136,-20008.32712291,0.0002,2]
[379108283,1755145840151,-151.0,0.00020253,2]
[379108284,1755145840165,-151.0,0.00020293,2]
[379108285,1755145840184,-151.0,0.00020353,2]
[379108286,1755145840199,-420.0,0.00020388,2]
[379108287,1755145840213,-1680.0,0.00020488,2]
[379108288,1755145840229,-600.0,0.00020568,2]
[379108289,1755145840244,-205.2072001,0.00020585,2]
[379108290,1755145840259,-150.99,0.00020724,2]
[379108291,1755145840274,-1698.7200451,0.00020884,2]
[379108292,1755145840289,-9999.99,0.00020898,2]
[379108293,1755145840304,-250.0,0.00020899,2]
[379108294,1755145840318,-300.0,0.00020899,2]
[379108296,1755145840333,-184.39342979,0.000209,2]
[379108297,1755145840347,-370.83767515,0.00020999,2]
[379108298,1755145840362,-20000.0,0.00021,2]
[379108301,1755145840377,-6774.92022566,0.00021,2]
[379108303,1755145840391,-1168.22359228,0.00021,2]
[379108304,1755145840407,-501.0,0.000211,2]
[379108305,1755145840423,-507.0,0.000211,2]
[379108307,1755145840438,-417.0,0.000211,2]
[379108310,1755145840452,-890.81831164,0.000211,2]
[379108311,1755145840467,-779.65,0.00021103,2]
[379108312,1755145840481,-5702.52,0.00021127,2]
[379108313,1755145840496,-1014.48,0.00021153,2]
[379108314,1755145840511,-205.2072001,0.00021428,2]
[379108315,1755145840525,-217.36846964,0.000215,2]
[379108316,1755145840539,-1500.0,0.00021527,2]
[379108317,1755145840555,-689.72,0.00021527,2]
[379108318,1755145840569,-4995.24,0.00021565,2]
[379108319,1755145840584,-7402.95,0.00021763,2]
[379108320,1755145840598,-150.56278338,0.00021918,2]
[379108321,1755145840612,-15639.03364653,0.0002199,2]
[379108322,1755145840627,-283.78820354,0.00022,2]
[379108323,1755145840641,-500.0,0.00022,2]
[379108324,1755145840655,-235.18018332,0.0002211,2]
[379108325,1755145840669,-205.2072001,0.00022271,2]
[379108326,1755145840684,-163.83,0.00022301,2]
[379108327,1755145840699,-2351.0,0.00022447,2]
[379108328,1755145840714,-501.0,0.0002247,3]
[379108329,1755145840728,-3120.78109616,0.000225,2]
[379108330,1755145840742,-150.9,0.00022505,2]
[379108331,1755145840757,-689.72,0.00022604,2]
[379108332,1755145840772,-720.0,0.00022625,2]
[379108333,1755145840787,-1341.99337237,0.00022715,2]
[379108334,1755145840801,-1492.09,0.00022921,2]
[379108335,1755145840821,-1492.09,0.00022933,2]
[379108336,1755145840837,-1492.09,0.00022945,2]
[379108337,1755145840850,-1492.09,0.00022957,2]
[379108338,1755145841237,-1492.09,0.00022969,2]
[379108339,1755145841272,-1492.09,0.00022981,2]
[379108340,1755145841297,-1492.09,0.00022993,2]
[379108341,1755145841307,-1492.09,0.00023005,2]
[379108342,1755145841316,-1492.09,0.00023017,2]
[379108343,1755145841325,-1492.09,0.00023029,2]
[379108344,1755145841334,-1492.09,0.00023042,2]
[379108345,1755145841343,-1492.09,0.00023054,2]
[379108346,1755145841353,-1492.09,0.00023066,2]
[379108347,1755145841362,-1492.09,0.00023078,2]
[379108348,1755145841371,-1492.09,0.0002309,2]
[379108349,1755145841380,-1492.09,0.00023102,2]
[379108350,1755145841389,-205.2072001,0.00023114,2]
[379108351,1755145841398,-1492.09,0.00023114,2]
[379108352,1755145841407,-1492.09,0.00023126,2]
[379108353,1755145841416,-1492.09,0.00023138,2]
[379108354,1755145841425,-1492.09,0.0002315,2]
[379108355,1755145841435,-890.81831164,0.000233,2]
[379108356,1755145841444,-847.62664467,0.00023567,2]
[379108357,1755145841453,-689.72,0.0002368,2]
[379108358,1755145841462,-501.0,0.0002384,4]
[379108359,1755145841471,-500.0,0.00023873,2]
[379108360,1755145841481,-500.0,0.00023873,2]
[379108361,1755145841490,-500.0,0.00023873,2]
[379108362,1755145841499,-500.0,0.00023873,2]
[379108363,1755145841509,-500.0,0.00023873,2]
[379108364,1755145841519,-47699.18,0.00023886,7]
[379108365,1755145841528,-205.2072001,0.00023956,2]
[379108366,1755145841538,-500.0,0.00023973,2]
[379108367,1755145841547,-505.64091826,0.00023973,2]
[379108368,1755145841556,-506.11383493,0.00023973,2]
[379108369,1755145841565,-500.0,0.00023973,2]
[379108370,1755145841574,-503.05018202,0.00023973,2]
[379108371,1755145841584,-500.0,0.00023973,2]
[379108372,1755145841593,-392.8149845,0.00023973,2]
[379108373,1755145841602,-500.0,0.00023973,2]
[379108374,1755145841611,-500.0,0.00023973,2]
[379108375,1755145841620,-500.0,0.00023973,2]
[379108376,1755145841629,-243.09128854,0.00023973,2]
[379108377,1755145841639,-500.0,0.00023973,2]
[379108378,1755145841648,-500.0,0.00023973,2]
[379108379,1755145841657,-847.62664467,0.00023973,2]
[379108380,1755145841666,-60575.73177408,0.00024,2]
[379108381,1755145841675,-50367.93781274,0.00024,2]
[379108382,1755145841684,-5270.068179,0.000241,2]
[379108383,1755145841693,-5000.0,0.00024117,2]
[379108384,1755145841703,-504.59,0.00024141,2]
[379108385,1755145841712,-847.62664467,0.00024155,2]
[379108386,1755145841721,-3615.18567949,0.0002421,2]
[379108387,1755145841730,-847.62664467,0.00024387,2]
[379108388,1755145841739,-1000.0,0.00024421,2]
[379108389,1755145841748,-500.0,0.00024421,2]
[379108390,1755145841757,-1000.0,0.00024421,2]
[379108391,1755145841766,-1139.05505357,0.000245,5]
[379108392,1755145841775,-1056.4758334,0.000245,5]
[379108393,1755145841784,-1104.11798196,0.000245,5]
[379108394,1755145841793,-1000.0,0.00024521,2]
[379108395,1755145841802,-1000.0,0.00024521,2]
[379108396,1755145841811,-370.66178612,0.00024521,2]
[379108397,1755145841820,-1000.0,0.00024521,2]
[379108398,1755145841828,-725.03294862,0.00024521,2]
[379108399,1755145841838,-2253.34,0.00024592,2]
[379108400,1755145841847,-3292.0,0.00024594,2]
[379108401,1755145841856,-167.25,0.00024688,2]
[379108402,1755145841865,-150.0,0.00024722,2]
[379108403,1755145841874,-689.72,0.00024757,2]
[379108404,1755145841884,-205.2072001,0.00024799,2]
[379108405,1755145841893,-150.0,0.00024799,2]
[379108406,1755145841902,-268650.232292,0.000248,3]
[379108407,1755145841912,-847.62664467,0.0002481,2]
[379108408,1755145841921,-221.26,0.00024858,2]
[379108409,1755145841931,-666.0,0.00024886,3]
[379108410,1755145841940,-310184.957803,0.000249,3]
[379108411,1755145841949,-1500.0,0.00024968,2]
[379108412,1755145841959,-520.75960411,0.00024968,2]
[379108413,1755145841968,-1594.6066723,0.00025,7]
[379108414,1755145841977,-536.4,0.00025005,2]
[379108415,1755145841987,-15000.0,0.0002501,2]
[379108416,1755145841996,-847.62664467,0.00025064,2]
[379108417,1755145842005,-494.27376963,0.00025068,2]
[379108418,1755145842015,-1009.56770731,0.00025068,2]
[379108419,1755145842024,-1512.11325738,0.00025068,2]
[379108420,1755145842035,-501.0,0.00025209,6]
[379108421,1755145842045,-267.39,0.00025224,2]
[379108422,1755145842055,-847.62664467,0.00025274,2]
[379108423,1755145842064,-211.86673127,0.00025416,2]
[379108424,1755145842074,-160.0,0.00025427,2]
[379108425,1755145842083,-458.13769775,0.00025427,2]
[379108426,1755145842096,-847.62664467,0.00025489,2]
[379108427,1755145842105,-890.81831164,0.000255,2]
[379108428,1755145842114,-1921.41437075,0.00025516,2]
[379108429,1755145842123,-847.62664467,0.00025798,2]
[379108430,1755145842133,-689.72,0.00025833,2]
[379108431,1755145842142,-525.6147177,0.00026,2]
[379108432,1755145842151,-4433.65,0.00026,2]
[379108433,1755145842160,-156.40661169,0.00026,2]
[379108434,1755145842172,-1259.473,0.00026096,2]
[379108435,1755145842181,-4149.0,0.00026096,2]
[379108436,1755145842190,-818.0,0.00026096,2]
[379108437,1755145842199,-3369.0,0.00026096,2]
[379108438,1755145842209,-250.0,0.00026154,2]
[379108439,1755145842218,-4000.0,0.0002625,4]
[379108440,1755145842227,-847.62664467,0.00026269,2]
[379108441,1755145842236,-847.62664467,0.00026399,2]
[379108442,1755145842246,-26860.95241278,0.000264,2]
[379108443,1755145842255,-3514.1,0.00026492,2]
[379108444,1755145842264,-500.0,0.000265,2]
[379108445,1755145842273,-40080.6576792,0.000265,2]
[379108446,1755145842282,-501.0,0.00026579,7]
[379108447,1755145842291,-847.62664467,0.00026707,2]
[379108448,1755145842301,-3423.70302,0.0002685,2]
[379108449,1755145842310,-2105.5716,0.0002691,2]
[379108450,1755145842319,-4609.0,0.00026947,2]
[379108451,1755145842328,-500.0,0.00026959,2]
[379108452,1755145842337,-500.85385883,0.00026973,2]
[379108453,1755145842346,-499.45376005,0.00026973,2]
[379108454,1755145842355,-200.0,0.00026994,2]
[379108455,1755145842364,-863.20397749,0.00027,30]
[379108456,1755145842374,-890.59792639,0.00027,30]
[379108457,1755145842383,-500.0,0.00027,30]
[379108458,1755145842392,-1100.0,0.00027,30]
[379108459,1755145842401,-500.0,0.00027,30]
[379108460,1755145842411,-1100.0,0.00027,30]
[379108461,1755145842419,-500.0,0.00027,30]
[379108462,1755145842428,-1100.0,0.00027,30]
[379108463,1755145842437,-500.0,0.00027,30]
[379108464,1755145842447,-1100.0,0.00027,30]
[379108465,1755145842455,-500.0,0.00027,30]
[379108466,1755145842465,-1100.0,0.00027,30]
[379108467,1755145842474,-1100.0,0.00027,30]
[379108468,1755145842483,-500.0,0.00027,30]
[379108469,1755145842492,-1100.0,0.00027,30]
[379108470,1755145842501,-500.0,0.00027,30]
[379108471,1755145842510,-1100.0,0.00027,30]
[379108472,1755145842520,-577.1592521,0.00027,30]
[379108473,1755145842529,-1100.0,0.00027,30]
[379108474,1755145842538,-1100.0,0.00027,30]
[379108475,1755145842547,-1100.0,0.00027,30]
[379108476,1755145842557,-1100.0,0.00027,30]
[379108477,1755145842567,-1100.0,0.00027,30]
[379108478,1755145842577,-1286.4911306,0.00027,30]
[379108479,1755145842587,-506.54894663,0.00027,30]
[379108480,1755145842596,-623.9041624,0.00027,30]
[379108481,1755145842606,-500.0,0.00027,30]
[379108482,1755145842615,-700.0,0.00027,30]
[379108483,1755145842626,-500.0,0.00027,30]
[379108484,1755145842637,-700.0,0.00027,30]
[379108485,1755145842646,-649.1162414,0.00027,30]
[379108486,1755145842655,-658.08935795,0.00027,30]
[379108487,1755145842665,-700.0,0.00027,30]
[379108488,1755145842675,-500.0,0.00027,30]
[379108489,1755145842684,-700.0,0.00027,30]
[379108490,1755145842694,-700.0,0.00027,30]
[379108491,1755145842703,-500.0,0.00027,30]
[379108492,1755145842714,-500.0,0.00027,30]
[379108493,1755145842724,-700.0,0.00027,30]
[379108494,1755145842733,-700.0,0.00027,30]
[379108495,1755145842743,-500.0,0.00027,30]
[379108496,1755145842752,-700.0,0.00027,30]
[379108497,1755145842762,-700.0,0.00027,30]
[379108498,1755145842771,-500.0,0.00027,30]
[379108499,1755145842780,-500.0,0.00027,30]
[379108500,1755145842790,-700.0,0.00027,30]
[379108501,1755145842799,-500.0,0.00027,30]
[379108502,1755145842809,-694.94885841,0.00027,30]
[379108503,1755145842818,-700.0,0.00027,30]
[379108504,1755145842828,-500.0,0.00027,30]
[379108505,1755145842838,-700.0,0.00027,30]
[379108506,1755145842848,-846.36481218,0.00027,30]
[379108507,1755145842860,-500.0,0.00027,30]
[379108508,1755145842869,-500.0,0.00027,30]
[379108509,1755145842879,-500.0,0.00027,30]
[379108510,1755145842889,-500.0,0.00027,30]
[379108511,1755145842899,-500.0,0.00027,30]
[379108512,1755145842909,-500.0,0.00027,30]
[379108513,1755145842920,-500.0,0.00027,30]
[379108514,1755145842930,-500.0,0.00027,30]